bitfinex/quotes_BTCUSD_20250901
["timestamp","ask_amount","ask_price","bid_price","bid_amount"]
[1756696737629,4.146e-05,107740.0,107730.0,2.74646282]
[1756696738785,4.146e-05,107740.0,107730.0,2.58834282]
[1756696738977,4.146e-05,107740.0,107730.0,2.41094328]
[1756696742556,4.146e-05,107740.0,107730.0,2.74646282]
[1756696743554,4.146e-05,107740.0,107730.0,1.91730374]
[1756696743681,4.146e-05,107740.0,107730.0,2.41094328]
[1756696744262,4.146e-05,107740.0,107730.0,2.41090328]
[1756696745934,4.146e-05,107740.0,107730.0,2.25282328]
[1756696746151,0.52119307,107740.0,107730.0,0.52445444]
[1756696746385,4.146e-05,107740.0,107730.0,0.86818374]
[1756696746598,4.146e-05,107740.0,107730.0,1.54352328]
[1756696746796,4.146e-05,107740.0,107730.0,1.20352328]
[1756696747021,4.146e-05,107740.0,107730.0,1.54352328]
[1756696747305,4.146e-05,107740.0,107730.0,1.93852328]
[1756696747733,4.146e-05,107740.0,107730.0,1.26500374]
[1756696747914,4.146e-05,107740.0,107730.0,1.69316328]
[1756696748119,4.146e-05,107740.0,107730.0,2.03216328]
[1756696748628,4.146e-05,107740.0,107730.0,2.03516328]
[1756696749433,4.146e-05,107740.0,107730.0,2.03416328]
[1756696749769,4.146e-05,107740.0,107730.0,2.03616328]
[1756696749974,4.146e-05,107740.0,107730.0,1.70064374]
[1756696750460,0.18567353,107740.0,107730.0,1.70064374]
[1756696750696,0.18567353,107740.0,107730.0,1.50064374]
[1756696750911,0.18567353,107740.0,107730.0,1.30064374]
[1756696751090,0.52119307,107740.0,107730.0,1.30064374]
[1756696751333,0.52119307,107740.0,107730.0,1.14256374]
[1756696751562,0.52119307,107740.0,107730.0,1.30064374]
[1756696752622,0.18567353,107740.0,107730.0,1.30064374]
[1756696753717,0.18567353,107740.0,107730.0,1.27275674]
[1756696755188,0.18567353,107740.0,107730.0,1.67275674]
[1756696755455,4.146e-05,107740.0,107730.0,1.27275674]
[1756696755912,4.146e-05,107740.0,107730.0,1.67275674]
[1756696756132,0.18567353,107740.0,107730.0,1.67275674]
[1756696757378,0.18567353,107740.0,107730.0,1.27275674]
[1756696757732,0.18567353,107740.0,107730.0,1.67275674]
[1756696757968,0.52119307,107740.0,107730.0,1.32902744]
[1756696758154,0.52119307,107740.0,107730.0,1.08710744]
[1756696758554,0.52119307,107740.0,107730.0,1.27275674]
[1756696760526,0.52119307,107740.0,107730.0,1.08710744]
[1756696760732,0.52119307,107740.0,107730.0,0.88710744]
[1756696762681,0.52119307,107740.0,107730.0,0.66406744]
[1756696763742,0.52119307,107740.0,107730.0,0.32402744]
[1756696764369,0.52119307,107740.0,107730.0,0.16598744]
[1756696764577,0.52119307,107740.0,107730.0,0.32402744]
[1756696765589,0.52119307,107740.0,107730.0,0.16598744]
[1756696765806,0.94933238,107740.0,107730.0,0.09764]
[1756696766018,0.87765143,107740.0,107730.0,0.25568]
[1756696766222,0.88700241,107740.0,107730.0,0.16304]
[1756696766865,0.88700241,107740.0,107730.0,0.16104]
[1756696767071,0.88900241,107740.0,107730.0,0.16104]
[1756696767283,1.22900241,107740.0,107730.0,0.003]
[1756696767491,0.18568378,107710.0,107700.0,0.22136]
[1756696767690,0.52120332,107710.0,107700.0,0.48163488]
[1756696767901,0.52120332,107710.0,107700.0,0.32359488]
[1756696768308,0.85672286,107710.0,107700.0,0.17359488]
[1756696768309,0.85672286,107710.0,107700.0,0.33163488]
[1756696768536,0.18568378,107710.0,107700.0,0.33163488]
[1756696768751,0.52120332,107710.0,107700.0,0.33163488]
[1756696769178,0.52120332,107710.0,107700.0,0.33263488]
[1756696769817,0.52120332,107710.0,107700.0,0.08161487]
[1756696770036,0.53064851,107710.0,107700.0,0.23965487]
[1756696770247,0.52120332,107710.0,107700.0,0.16829487]
[1756696770912,0.52120332,107710.0,107700.0,0.16929487]
[1756696771729,0.52120332,107710.0,107700.0,0.16829487]
[1756696773128,0.52120332,107710.0,107700.0,0.16729487]
[1756696777048,0.18570102,107700.0,107690.0,0.11353974]
[1756696777281,0.8567401,107700.0,107690.0,0.11353974]
[1756696777492,0.8567401,107700.0,107690.0,0.27157974]
[1756696778146,0.87767892,107700.0,107690.0,0.07136]
[1756696778393,0.87767892,107700.0,107690.0,0.23049127]
[1756696779063,1.03571892,107700.0,107690.0,0.00109127]
[1756696779497,1.37571892,107700.0,107690.0,0.00109127]
[1756696779724,1.46869893,107700.0,107690.0,0.00109127]
[1756696779950,1.46869893,107700.0,107690.0,0.00209127]
[1756696780386,1.46869893,107700.0,107690.0,0.00109127]
[1756696780596,1.46869893,107700.0,107690.0,9.127e-05]
[1756696780806,1.46969893,107700.0,107690.0,9.127e-05]
[1756696781021,1.47269893,107700.0,107690.0,9.127e-05]
[1756696781234,1.46869893,107700.0,107690.0,9.127e-05]
[1756696781420,1.51507524,107700.0,107690.0,9.127e-05]
[1756696781644,1.51707524,107700.0,107690.0,9.127e-05]
[1756696782059,1.52007524,107700.0,107690.0,9.127e-05]
[1756696782726,1.52011524,107700.0,107690.0,9.127e-05]
[1756696782950,1.47373893,107700.0,107690.0,9.127e-05]
[1756696786229,0.64461985,107700.0,107690.0,9.127e-05]
[1756696786432,1.47173893,107700.0,107690.0,9.127e-05]
[1756696786633,1.50164893,107700.0,107690.0,9.127e-05]
[1756696788022,1.49964893,107700.0,107690.0,9.127e-05]
[1756696788624,1.24858892,107700.0,107690.0,9.127e-05]
[1756696788826,1.40666892,107700.0,107690.0,9.127e-05]
[1756696789234,1.40866892,107700.0,107690.0,9.127e-05]
[1756696789637,1.40366892,107700.0,107690.0,9.127e-05]
[1756696789849,1.40666892,107700.0,107690.0,9.127e-05]
[1756696790158,1.40466892,107700.0,107690.0,9.127e-05]
[1756696790494,1.40566892,107700.0,107690.0,9.127e-05]
[1756696791572,1.24758892,107700.0,107690.0,9.127e-05]
[1756696791778,1.40566892,107700.0,107690.0,9.127e-05]
[1756696791978,1.37775892,107700.0,107690.0,9.127e-05]
[1756696794373,1.40566692,107700.0,107690.0,9.127e-05]
[1756696794790,1.37775892,107700.0,107690.0,9.127e-05]
[1756696795202,1.21967892,107700.0,107690.0,9.127e-05]
[1756696795402,1.37775892,107700.0,107690.0,9.127e-05]
[1756696795892,1.47070868,107700.0,107670.0,0.07136]
[1756696796107,0.86125505,107680.0,107670.0,0.09302763]
[1756696796721,0.52125505,107680.0,107670.0,0.09302763]
[1756696796896,0.18573551,107680.0,107670.0,0.09302763]
[1756696797102,0.52125505,107680.0,107670.0,0.09302763]
[1756696797724,0.52125505,107680.0,107670.0,0.09402763]
[1756696798874,0.52125505,107680.0,107670.0,0.09502763]
[1756696799113,0.52125505,107680.0,107670.0,0.00204762]
[1756696799687,0.52125505,107680.0,107670.0,0.00104762]
[1756696799886,0.52125505,107680.0,107670.0,4.762e-05]
[1756696800323,0.52225505,107680.0,107670.0,4.762e-05]
[1756696800470,0.52125505,107680.0,107670.0,4.762e-05]
[1756696800897,0.18673551,107680.0,107670.0,4.762e-05]
[1756696801169,0.52225505,107680.0,107670.0,4.762e-05]
[1756696802359,0.52325505,107680.0,107670.0,4.762e-05]
[1756696806828,0.53278609,107680.0,107670.0,4.762e-05]
[1756696809479,0.52325505,107680.0,107670.0,4.762e-05]
[1756696812114,0.19773551,107680.0,107670.0,4.762e-05]
[1756696812334,0.53325505,107680.0,107670.0,4.762e-05]
[1756696814494,0.69129505,107680.0,107670.0,4.762e-05]
[1756696814682,1.13824721,107680.0,107670.0,4.762e-05]
[1756696814887,0.71223387,107680.0,107670.0,4.762e-05]
[1756696815100,1.38775341,107680.0,107670.0,4.762e-05]
[1756696815307,1.48073342,107680.0,107670.0,4.762e-05]
[1756696815524,0.20669158,107670.0,107660.0,1e-08]
[1756696815718,0.87773066,107670.0,107660.0,8.825e-05]
[1756696816391,1.21773066,107670.0,107660.0,8.825e-05]
[1756696816601,1.3798525,107670.0,107660.0,8.825e-05]
[1756696816824,1.31071067,107670.0,107660.0,1e-08]
[1756696817476,1.46875067,107670.0,107660.0,1e-08]
[1756696818225,1.46875067,107670.0,107660.0,0.00100001]
[1756696818648,1.31071067,107670.0,107660.0,1e-08]
[1756696818854,1.46875067,107670.0,107660.0,1e-08]
[1756696819070,1.47075067,107670.0,107660.0,1e-08]
[1756696819448,1.47475067,107670.0,107660.0,1e-08]
[1756696819687,1.31271067,107670.0,107660.0,1e-08]
[1756696819875,1.47075067,107670.0,107660.0,1e-08]
[1756696820047,1.47475067,107670.0,107660.0,1e-08]
[1756696821514,1.63710043,107670.0,107660.0,1e-08]
[1756696821740,1.63910043,107670.0,107660.0,1e-08]
[1756696821980,1.63710043,107670.0,107660.0,1e-08]
[1756696822394,1.66301943,107670.0,107660.0,1e-08]
[1756696822622,1.66701943,107670.0,107660.0,1e-08]
[1756696822808,1.66301943,107670.0,107660.0,1e-08]
[1756696823131,1.57406967,107670.0,107660.0,1e-08]
[1756696823770,1.41602967,107670.0,107660.0,1e-08]
[1756696823896,1.07017012,107670.0,107660.0,1e-08]
[1756696824337,1.07217012,107670.0,107660.0,1e-08]
[1756696824544,1.40968966,107670.0,107660.0,1e-08]
[1756696825161,1.40768966,107670.0,107660.0,1e-08]
[1756696825363,1.40868966,107670.0,107660.0,1e-08]
[1756696825686,1.56066288,107670.0,107660.0,1e-08]
[1756696825909,1.61587082,107670.0,107660.0,1e-08]
[1756696826117,1.61987082,107670.0,107660.0,1e-08]
[1756696826242,1.61587082,107670.0,107660.0,1e-08]
[1756696826660,1.58873973,107670.0,107660.0,1e-08]
[1756696826890,1.66013973,107670.0,107660.0,1e-08]
[1756696827053,1.68927082,107670.0,107660.0,1e-08]
[1756696827497,1.66013973,107670.0,107660.0,1e-08]
[1756696827730,1.50209973,107670.0,107660.0,1e-08]
[1756696827935,1.66013973,107670.0,107660.0,1e-08]
[1756696828360,1.99565927,107670.0,107660.0,1e-08]
[1756696828581,2.04561927,107670.0,107660.0,1e-08]
[1756696829058,1.71009973,107670.0,107660.0,1e-08]
[1756696830163,2.04561927,107670.0,107660.0,1e-08]
[1756696830384,2.07959648,107670.0,107660.0,1e-08]
[1756696831250,2.05046539,107670.0,107660.0,1e-08]
[1756696832294,1.71494585,107670.0,107660.0,1e-08]
[1756696832496,1.04390677,107670.0,107660.0,1e-08]
[1756696832707,1.71009973,107670.0,107660.0,1e-08]
[1756696832923,1.55209973,107670.0,107660.0,1e-08]
[1756696833130,1.71009973,107670.0,107660.0,1e-08]
[1756696833556,2.04561927,107670.0,107660.0,1e-08]
[1756696834627,1.71009973,107670.0,107660.0,1e-08]
[1756696835237,1.72009973,107670.0,107660.0,1e-08]
[1756696835421,1.56209973,107670.0,107660.0,1e-08]
[1756696835677,1.72013973,107670.0,107660.0,1e-08]
[1756696835884,1.72009973,107670.0,107660.0,1e-08]
[1756696839348,1.71973008,107670.0,107660.0,1e-08]
[1756696840391,1.68965323,107670.0,107660.0,1e-08]
[1756696842272,1.48165323,107670.0,107660.0,1e-08]
[1756696842473,1.63965323,107670.0,107660.0,1e-08]
[1756696844252,1.42266002,107670.0,107660.0,1e-08]
[1756696844455,1.58066002,107670.0,107660.0,1e-08]
[1756696845495,0.96874119,107670.0,107660.0,1e-08]
[1756696845747,1.12674119,107670.0,107660.0,1e-08]
[1756696846013,0.53390265,107670.0,107660.0,1e-08]
[1756696846218,0.69190265,107670.0,107660.0,1e-08]
[1756696846431,0.71284147,107670.0,107660.0,1e-08]
[1756696847719,0.55484147,107670.0,107660.0,1e-08]
[1756696847936,0.71284147,107670.0,107660.0,1e-08]
[1756696848728,0.71280147,107670.0,107660.0,1e-08]
[1756696849941,1.04832101,107670.0,107660.0,1e-08]
[1756696851184,1.55270102,107670.0,107660.0,1e-08]
[1756696854136,1.58061902,107670.0,107660.0,1e-08]
[1756696855333,1.42265902,107670.0,107660.0,1e-08]
[1756696855493,1.58061902,107670.0,107660.0,1e-08]
[1756696856656,1.35125902,107670.0,107660.0,1e-08]
[1756696856867,0.74519993,107670.0,107660.0,1e-08]
[1756696857080,1.08071947,107670.0,107660.0,1e-08]
[1756696857479,1.41623901,107670.0,107660.0,1e-08]
[1756696859519,1.08071947,107670.0,107660.0,1e-08]
[1756696859739,1.08067947,107670.0,107660.0,1e-08]
[1756696860598,0.71276147,107670.0,107660.0,1e-08]
[1756696861018,0.19838311,107670.0,107660.0,0.00938102]
[1756696861220,0.19838311,107670.0,107660.0,0.10236103]
[1756696861427,0.013,107670.0,107660.0,0.76426957]
[1756696861636,0.013,107670.0,107660.0,0.92218957]
[1756696861886,0.19775276,107670.0,107660.0,0.58667003]
[1756696862095,0.18364221,107670.0,107660.0,0.58667003]
[1756696862296,0.001,107670.0,107660.0,0.58667003]
[1756696862507,0.18675276,107670.0,107660.0,0.58667003]
[1756696862720,0.18775276,107670.0,107660.0,0.92218957]
[1756696862918,0.001,107670.0,107660.0,0.92218957]
[1756696863135,0.18675276,107670.0,107660.0,0.77369624]
[1756696863332,0.18675276,107670.0,107660.0,0.93161624]
[1756696863567,0.18675276,107670.0,107660.0,0.5960967]
[1756696863769,0.18575276,107670.0,107660.0,0.5960967]
[1756696863973,0.19573551,107680.0,107660.0,1.13161624]
[1756696864187,0.19573551,107680.0,107670.0,0.28105467]
[1756696864416,0.01,107680.0,107670.0,0.68565231]
[1756696864626,0.01,107680.0,107670.0,0.35013277]
[1756696865925,0.19573551,107680.0,107670.0,0.35013277]
[1756696866140,0.01,107680.0,107670.0,0.39237892]
[1756696866622,0.19573551,107680.0,107670.0,0.39237892]
[1756696866844,0.19573551,107680.0,107670.0,0.55025892]
[1756696867083,0.19573551,107680.0,107670.0,0.55125892]
[1756696867288,0.19573551,107680.0,107670.0,0.36550616]
[1756696867911,0.19573551,107680.0,107670.0,0.36650616]
[1756696868705,0.19573551,107680.0,107670.0,0.36550616]
[1756696869258,0.19573551,107680.0,107670.0,0.36850616]
[1756696869896,0.19573551,107680.0,107670.0,0.21062616]
[1756696870096,0.19573551,107680.0,107670.0,0.36850616]
[1756696870497,0.19573551,107680.0,107670.0,0.21062616]
[1756696870704,0.19573551,107680.0,107670.0,0.36850616]
[1756696871717,0.53125505,107680.0,107670.0,0.21062616]
[1756696871953,0.53125505,107680.0,107670.0,0.36850616]
[1756696872210,0.55219387,107680.0,107670.0,0.23328]
[1756696872387,0.55219387,107680.0,107670.0,0.004]
[1756696872738,0.56144817,107680.0,107670.0,0.004]
[1756696872933,1.23696771,107680.0,107670.0,0.004]
[1756696873135,1.23696771,107680.0,107670.0,0.001]
[1756696873382,1.26488171,107680.0,107670.0,0.001]
[1756696873597,0.20669158,107670.0,107660.0,1e-08]
[1756696873898,1.03557066,107670.0,107660.0,1e-08]
[1756696874110,0.70005112,107670.0,107660.0,1e-08]
[1756696875339,0.54221112,107670.0,107660.0,1e-08]
[1756696876192,0.87773066,107670.0,107660.0,1e-08]
[1756696876594,1.21773066,107670.0,107660.0,1e-08]
[1756696877224,1.31071067,107670.0,107660.0,1e-08]
[1756696877429,1.56482089,107670.0,107660.0,1e-08]
[1756696877782,1.47055067,107670.0,107660.0,1e-08]
[1756696877929,1.46855067,107670.0,107660.0,1e-08]
[1756696878347,1.47055067,107670.0,107660.0,1e-08]
[1756696879145,1.47355067,107670.0,107660.0,1e-08]
[1756696879382,1.47055067,107670.0,107660.0,1e-08]
[1756696879821,1.47355067,107670.0,107660.0,1e-08]
[1756696880119,1.31571067,107670.0,107660.0,1e-08]
[1756696880249,1.47155067,107670.0,107660.0,1e-08]
[1756696880656,1.47355067,107670.0,107660.0,1e-08]
[1756696881094,1.47155067,107670.0,107660.0,1e-08]
[1756696881339,1.47355067,107670.0,107660.0,1e-08]
[1756696881762,1.56650043,107670.0,107660.0,1e-08]
[1756696881962,1.63790043,107670.0,107660.0,1e-08]
[1756696882204,1.57286867,107670.0,107660.0,1e-08]
[1756696882968,1.41502867,107670.0,107660.0,1e-08]
[1756696883207,1.57286867,107670.0,107660.0,1e-08]
[1756696883641,0.90182959,107670.0,107660.0,1e-08]
[1756696883865,1.41502867,107670.0,107660.0,1e-08]
[1756696884070,1.57286867,107670.0,107660.0,1e-08]
[1756696884764,1.57086867,107670.0,107660.0,1e-08]
[1756696886108,1.25184398,107670.0,107660.0,1e-08]
[1756696886526,1.24984398,107670.0,107660.0,1e-08]
[1756696886962,1.25184398,107670.0,107660.0,1e-08]
[1756696888099,1.09400398,107670.0,107660.0,1e-08]
[1756696888261,1.25184398,107670.0,107660.0,1e-08]
[1756696888983,1.24884398,107670.0,107660.0,1e-08]
[1756696889151,1.24684398,107670.0,107660.0,1e-08]
[1756696889354,0.89982959,107670.0,107660.0,1e-08]
[1756696889600,1.24884398,107670.0,107660.0,1e-08]
[1756696889913,1.25184398,107670.0,107660.0,1e-08]
[1756696890140,1.24984398,107670.0,107660.0,1e-08]
[1756696890362,1.09400398,107670.0,107660.0,1e-08]
[1756696890564,1.25184398,107670.0,107660.0,1e-08]
[1756696894243,1.34479374,107670.0,107660.0,1e-08]
[1756696895382,1.25184398,107670.0,107660.0,1e-08]
[1756696897347,1.09400398,107670.0,107660.0,1e-08]
[1756696897750,1.25184398,107670.0,107660.0,1e-08]
[1756696899870,1.09400398,107670.0,107660.0,1e-08]
[1756696900102,1.25184398,107670.0,107660.0,1e-08]
[1756696900306,1.24984398,107670.0,107660.0,1e-08]
[1756696900533,1.25184398,107670.0,107660.0,1e-08]
[1756696901945,1.24684398,107670.0,107660.0,1e-08]
[1756696902362,1.25184398,107670.0,107660.0,1e-08]
[1756696902562,1.24884398,107670.0,107660.0,1e-08]
[1756696903008,1.25184398,107670.0,107660.0,1e-08]
[1756696903872,1.34031849,107670.0,107660.0,1e-08]
[1756696904287,1.34027849,107670.0,107660.0,1e-08]
[1756696904531,1.25180398,107670.0,107660.0,1e-08]
[1756696904732,0.90178959,107670.0,107660.0,1e-08]
[1756696904950,1.25180398,107670.0,107660.0,1e-08]
[1756696906060,1.09400398,107670.0,107660.0,1e-08]
[1756696906265,1.25180398,107670.0,107660.0,1e-08]
[1756696906465,1.09400398,107670.0,107660.0,1e-08]
[1756696906665,1.25180398,107670.0,107660.0,1e-08]
[1756696907753,1.09400398,107670.0,107660.0,1e-08]
[1756696907907,1.25180398,107670.0,107660.0,1e-08]
[1756696908119,1.57386151,107670.0,107660.0,1e-08]
[1756696909773,1.41606151,107670.0,107660.0,1e-08]
[1756696909949,1.57386151,107670.0,107660.0,1e-08]
[1756696912704,1.41606151,107670.0,107660.0,1e-08]
[1756696912887,1.57386151,107670.0,107660.0,1e-08]
[1756696920656,1.6114935,107670.0,107660.0,1e-08]
[1756696921682,1.57386151,107670.0,107660.0,1e-08]
[1756696921909,1.57382151,107670.0,107660.0,1e-08]
[1756696922563,1.23074268,107670.0,107660.0,1e-08]
[1756696922767,0.71246672,107670.0,107660.0,1e-08]
[1756696922987,1.4094415,107670.0,107660.0,1e-08]
[1756696923204,1.72601921,107670.0,107660.0,1e-08]
[1756696923924,1.72301921,107670.0,107660.0,1e-08]
[1756696924144,1.72601921,107670.0,107660.0,1e-08]
[1756696924353,1.63006945,107670.0,107660.0,1e-08]
[1756696924758,1.60093836,107670.0,107660.0,1e-08]
[1756696925124,1.59893836,107670.0,107660.0,1e-08]
[1756696925531,1.93697432,107670.0,107660.0,1e-08]
[1756696925729,1.69388812,107670.0,107660.0,1e-08]
[1756696925919,1.69188812,107670.0,107660.0,1e-08]
[1756696926287,1.69388812,107670.0,107660.0,1e-08]
[1756696926512,1.69688812,107670.0,107660.0,1e-08]
[1756696927220,1.60393836,107670.0,107660.0,1e-08]
[1756696927679,1.93997432,107670.0,107660.0,1e-08]
[1756696927890,2.01910541,107670.0,107660.0,1e-08]
[1756696929767,1.98997432,107670.0,107660.0,1e-08]
[1756696930224,1.57386151,107670.0,107660.0,1e-08]
[1756696930432,1.66681127,107670.0,107660.0,1e-08]
[1756696930636,1.50905127,107670.0,107660.0,1e-08]
[1756696930843,1.66681127,107670.0,107660.0,1e-08]
[1756696932289,1.69688812,107670.0,107660.0,1e-08]
[1756696935127,1.10617836,107670.0,107660.0,1e-08]
[1756696935373,1.23386151,107670.0,107660.0,1e-08]
[1756696935928,1.6293513,107670.0,107660.0,1e-08]
[1756696936150,1.63331534,107670.0,107660.0,1e-08]
[1756696937039,1.93997432,107670.0,107660.0,1e-08]
[1756696937200,1.60393836,107670.0,107660.0,1e-08]
[1756696937403,0.8670562,107670.0,107660.0,1e-08]
[1756696937736,2.08292408,107670.0,107660.0,1e-08]
[1756696937940,2.11230106,107670.0,107660.0,1e-08]
[1756696938496,2.08292408,107670.0,107660.0,1e-08]
[1756696938677,2.11230106,107670.0,107660.0,1e-08]
[1756696939105,2.08292408,107670.0,107660.0,1e-08]
[1756696939337,2.08777021,107670.0,107660.0,1e-08]
[1756696941496,2.08945021,107670.0,107660.0,1e-08]
[1756696941654,2.08941021,107670.0,107660.0,1e-08]
[1756696942028,2.08456408,107670.0,107660.0,1e-08]
[1756696942943,1.69852812,107670.0,107660.0,1e-08]
[1756696943154,1.74852812,107670.0,107660.0,1e-08]
[1756696943937,1.66845127,107670.0,107660.0,1e-08]
[1756696944150,1.71845127,107670.0,107660.0,1e-08]
[1756696945654,1.50905127,107670.0,107660.0,1e-08]
[1756696945864,1.05516269,107670.0,107660.0,1e-08]
[1756696946081,1.23546151,107670.0,107660.0,1e-08]
[1756696946288,1.57546151,107670.0,107660.0,1e-08]
[1756696947375,1.05912673,107670.0,107660.0,1e-08]
[1756696947589,1.21848673,107670.0,107660.0,1e-08]
[1756696947802,0.90338959,107670.0,107660.0,1e-08]
[1756696948034,1.23942555,107670.0,107660.0,1e-08]
[1756696950525,0.90338959,107670.0,107660.0,1e-08]
[1756696950753,1.23938555,107670.0,107660.0,1e-08]
[1756696953733,0.21867076,107670.0,107660.0,1e-08]
[1756696953984,0.19075276,107670.0,107660.0,1e-08]
[1756696957677,0.19075276,107670.0,107660.0,0.61710811]
[1756696957894,0.19075276,107670.0,107660.0,0.76478599]
[1756696958153,0.18875276,107670.0,107660.0,0.76478599]
[1756696958372,0.18575276,107670.0,107660.0,0.76478599]
[1756696958602,0.18875276,107670.0,107660.0,0.76478599]
[1756696959064,0.18775276,107670.0,107660.0,0.76478599]
[1756696959281,0.18775276,107670.0,107660.0,0.73805598]
[1756696959498,0.18775276,107670.0,107660.0,0.4436676]
[1756696959933,0.18575276,107670.0,107660.0,0.2846276]
[1756696960148,0.18575276,107670.0,107660.0,0.4436676]
[1756696960595,0.53177147,107680.0,107670.0,0.18575276]
[1756696960596,0.01,107680.0,107670.0,0.18575276]
[1756696960825,0.01,107680.0,107670.0,0.71395265]
[1756696961068,0.01,107680.0,107670.0,0.80659265]
[1756696961711,0.19573551,107680.0,107670.0,0.71395265]
[1756696962373,0.01,107680.0,107670.0,0.71395265]
[1756696962797,0.19573551,107680.0,107670.0,0.71395265]
[1756696963011,0.19573551,107680.0,107670.0,0.37791669]
[1756696963240,0.19573551,107680.0,107670.0,0.87291265]
[1756696963452,0.19573551,107680.0,107670.0,0.87491265]
[1756696963658,0.19573551,107680.0,107670.0,0.87291265]
[1756696963868,0.19573551,107680.0,107670.0,0.38191669]
[1756696964075,0.19573551,107680.0,107670.0,0.53687669]
[1756696964288,0.19573551,107680.0,107670.0,0.53787669]
[1756696964514,0.19573551,107680.0,107670.0,0.87591265]
[1756696964714,0.19573551,107680.0,107670.0,0.38091669]
[1756696964936,0.19573551,107680.0,107670.0,0.35412393]
[1756696965150,0.19573551,107680.0,107670.0,0.53987669]
[1756696966001,0.19573551,107680.0,107670.0,0.53887669]
[1756696966564,0.19573551,107680.0,107670.0,0.35112393]
[1756696966786,0.19573551,107680.0,107670.0,0.35212393]
[1756696967232,0.19573551,107680.0,107670.0,0.53687669]
[1756696967461,0.19573551,107680.0,107670.0,0.53887669]
[1756696967897,0.19573551,107680.0,107670.0,0.53987669]
[1756696968356,0.19573551,107680.0,107670.0,0.33545154]
[1756696968583,0.19573551,107680.0,107670.0,0.33445154]
[1756696968872,0.19573551,107680.0,107670.0,0.33545154]
[1756696969290,0.19573551,107680.0,107670.0,0.33445154]
[1756696969501,0.19573551,107680.0,107670.0,0.5192043]
[1756696969712,0.19573551,107680.0,107670.0,0.5202043]
[1756696970750,0.19573551,107680.0,107670.0,0.17565154]
[1756696970984,0.19573551,107680.0,107670.0,0.33669344]
[1756696971165,0.19573551,107680.0,107670.0,0.33437154]
[1756696973363,0.19573551,107680.0,107670.0,0.5201243]
[1756696973595,0.19573551,107680.0,107670.0,0.85616026]
[1756696974221,0.19573551,107680.0,107670.0,0.5201243]
[1756696974740,0.19573551,107680.0,107670.0,0.33437154]
[1756696976393,0.19573551,107680.0,107670.0,0.5201243]
[1756696977391,0.19573551,107680.0,107670.0,0.33437154]
[1756696978379,0.19573551,107680.0,107670.0,0.5201243]
[1756696978585,0.19573551,107680.0,107670.0,0.85616026]
[1756696978967,0.01,107680.0,107670.0,0.85616026]
[1756696979347,0.19573551,107680.0,107670.0,0.85616026]
[1756696980336,0.19573551,107680.0,107670.0,0.85584026]
[1756696980542,0.19573551,107680.0,107670.0,0.5198043]
[1756696980725,0.01,107680.0,107670.0,0.85584026]
[1756696980938,0.19573551,107680.0,107670.0,0.85584026]
[1756696983623,0.19573551,107680.0,107670.0,0.17565154]
[1756696984032,0.19573551,107680.0,107670.0,0.33385154]
[1756696984238,0.19573551,107680.0,107670.0,0.17565154]
[1756696984505,0.19573551,107680.0,107670.0,0.33385154]
[1756696985349,0.53177147,107680.0,107670.0,0.08267153]
[1756696985555,0.53177147,107680.0,107670.0,0.24087153]
[1756696985979,0.19573551,107680.0,107670.0,0.24087153]
[1756696986189,0.19573551,107680.0,107670.0,0.33385154]
[1756696986398,0.19573551,107680.0,107670.0,0.6698875]
[1756696986782,0.19573551,107680.0,107670.0,0.85564026]
[1756696986987,0.19573551,107680.0,107670.0,0.5196043]
[1756696988035,0.19573551,107680.0,107670.0,0.33385154]
[1756696990154,0.19573551,107680.0,107670.0,0.5196043]
[1756696990973,0.19573551,107680.0,107670.0,0.51033277]
[1756696991428,0.19573551,107680.0,107670.0,0.32458001]
[1756696991652,0.19573551,107680.0,107670.0,0.32442001]
[1756696991876,0.19573551,107680.0,107670.0,0.16638001]
[1756696992285,0.53177147,107680.0,107670.0,0.32438001]
[1756696992495,0.53177147,107680.0,107670.0,0.2314]
[1756696993434,0.55271029,107680.0,107670.0,0.0734]
[1756696993634,0.55271029,107680.0,107670.0,0.16]
[1756696994774,0.21667433,107680.0,107670.0,0.16]
[1756696995622,0.55271029,107680.0,107670.0,0.16]
[1756696995828,0.55271029,107680.0,107670.0,0.002]
[1756696996040,0.55271029,107680.0,107670.0,0.15988]
[1756696996256,0.55271029,107680.0,107670.0,0.002]
[1756696996490,0.55271029,107680.0,107670.0,0.15992]
[1756696996706,0.55271029,107680.0,107670.0,0.002]
[1756696996707,1.22874625,107680.0,107670.0,0.002]
[1756696996912,1.43927731,107680.0,107670.0,0.002]
[1756696997336,0.54669158,107670.0,107660.0,1e-08]
[1756696997551,1.3766835,107670.0,107660.0,1e-08]
[1756696998626,1.46966351,107670.0,107660.0,1e-08]
[1756696999456,1.47178351,107670.0,107660.0,1e-08]
[1756697000529,1.5139027,107670.0,107660.0,1e-08]
[1756697000736,1.3558627,107670.0,107660.0,1e-08]
[1756697000940,1.57260011,107670.0,107660.0,1e-08]
[1756697001392,1.57256011,107670.0,107660.0,1e-08]
[1756697001634,1.90859607,107670.0,107660.0,1e-08]
[1756697001853,1.57256011,107670.0,107660.0,1e-08]
[1756697002693,1.54329439,107670.0,107660.0,1e-08]
[1756697003764,1.38529439,107670.0,107660.0,1e-08]
[1756697003966,1.54325439,107670.0,107660.0,1e-08]
[1756697005309,1.57117439,107670.0,107660.0,1e-08]
[1756697005754,2.01477439,107670.0,107660.0,1e-08]
[1756697005970,2.43007607,107670.0,107660.0,1e-08]
[1756697007585,3.03492218,107670.0,107660.0,1e-08]
[1756697008026,3.03488218,107670.0,107660.0,1e-08]
[1756697008438,2.87696218,107670.0,107660.0,1e-08]
[1756697008687,3.03488218,107670.0,107660.0,1e-08]
[1756697009535,2.87696218,107670.0,107660.0,1e-08]
[1756697009748,2.50681439,107670.0,107660.0,1e-08]
[1756697009978,2.66473439,107670.0,107660.0,1e-08]
[1756697010186,3.00077035,107670.0,107660.0,1e-08]
[1756697010367,2.55717035,107670.0,107660.0,1e-08]
[1756697011060,2.56201638,107670.0,107660.0,1e-08]
[1756697011500,2.58989812,107670.0,107660.0,1e-08]
[1756697012149,2.59475257,107670.0,107660.0,1e-08]
[1756697013408,2.07291487,107670.0,107660.0,1e-08]
[1756697013617,2.19655715,107670.0,107660.0,1e-08]
[1756697014070,2.53259311,107670.0,107660.0,1e-08]
[1756697015005,2.56578659,107670.0,107660.0,1e-08]
[1756697016344,1.39975871,107670.0,107660.0,1e-08]
[1756697016557,2.56578659,107670.0,107660.0,1e-08]
[1756697017476,2.40786659,107670.0,107660.0,1e-08]
[1756697017708,2.56634659,107670.0,107660.0,1e-08]
[1756697017921,2.17546451,107670.0,107660.0,1e-08]
[1756697018310,2.22546451,107670.0,107660.0,1e-08]
[1756697018514,2.56150047,107670.0,107660.0,1e-08]
[1756697018745,2.51150047,107670.0,107660.0,1e-08]
[1756697019022,2.12617833,107670.0,107660.0,1e-08]